[Event "*** Titled Tuesday Blitz"]
[Site "Chess.com"]
[Date "2021.04.20"]
[Round "4"]
[White "bricolageur"]
[Black "FontVella8"]
[Result "1-0"]
[WhiteElo "2316"]
[BlackElo "2434"]
[TimeControl "180+1"]
[EndTime "10:38:12 PDT"]
[Termination "bricolageur won by resignation"]

1. e4 {[%clk 0:03:00.9]} 1... e6 {[%clk 0:02:59.7]} 2. d4 {[%clk 0:03:00.8]}
2... d5 {[%clk 0:03:00.3]} 3. Nc3 {[%clk 0:03:01.5]} 3... Bb4 {[%clk 0:02:59.8]}
4. e5 {[%clk 0:03:02.1]} 4... c5 {[%clk 0:03:00]} 5. a3 {[%clk 0:03:02.7]} 5...
Ba5 {[%clk 0:03:00.3]} 6. b4 {[%clk 0:02:57.9]} 6... cxb4 {[%clk 0:03:00]} 7.
Nb5 {[%clk 0:02:58.6]} 7... Nc6 {[%clk 0:03:00.5]} 8. Nd6+ {[%clk 0:02:52.5]}
8... Kf8 {[%clk 0:03:00.5]} 9. Nf3 {[%clk 0:02:39.6]} 9... Qc7 {[%clk
0:02:58.9]} 10. Bd3 {[%clk 0:02:27.6]} 10... b3+ {[%clk 0:02:58.6]} 11. Bd2
{[%clk 0:02:26.5]} 11... bxc2 {[%clk 0:02:50.4]} 12. Qxc2 {[%clk 0:02:21.9]}
12... Nh6 {[%clk 0:02:50.3]} 13. O-O {[%clk 0:02:18.1]} 13... Bxd2 {[%clk
0:02:50.3]} 14. Qxd2 {[%clk 0:02:18.6]} 14... Nf5 {[%clk 0:02:46]} 15. Bxf5
{[%clk 0:02:16.6]} 15... exf5 {[%clk 0:02:46.9]} 16. Rfc1 {[%clk 0:02:09.7]}
16... Be6 {[%clk 0:02:45.7]} 17. Rab1 {[%clk 0:02:08.9]} 17... Rb8 {[%clk
0:02:43.3]} 18. Qb4 {[%clk 0:01:43.1]} 18... Kg8 {[%clk 0:02:39.2]} 19. Qa4
{[%clk 0:01:37.8]} 19... a6 {[%clk 0:02:31.4]} 20. Nxb7 {[%clk 0:01:06.4]} 20...
Rxb7 {[%clk 0:02:31]} 21. Rxb7 {[%clk 0:01:06.6]} 21... Qxb7 {[%clk 0:02:29.4]}
22. Qxc6 {[%clk 0:01:07.2]} 22... Qxc6 {[%clk 0:02:26.3]} 23. Rxc6 {[%clk
0:01:08.1]} 23... h6 {[%clk 0:02:26.4]} 24. Rxa6 {[%clk 0:01:03.6]} 24... Kh7
{[%clk 0:02:26.5]} 25. h4 {[%clk 0:00:52.6]} 25... Rc8 {[%clk 0:02:26.7]} 26.
Kh2 {[%clk 0:00:45.3]} 26... Rc2 {[%clk 0:02:26]} 27. Kg3 {[%clk 0:00:45.2]}
27... Rc3 {[%clk 0:02:24.3]} 28. Kf4 {[%clk 0:00:42.9]} 28... Rc2 {[%clk
0:02:23.1]} 29. Ke3 {[%clk 0:00:43.1]} 29... Rc3+ {[%clk 0:02:23.2]} 30. Kd2
{[%clk 0:00:40.9]} 30... Rb3 {[%clk 0:02:23.1]} 31. Ne1 {[%clk 0:00:34.5]} 31...
g5 {[%clk 0:02:21.3]} 32. hxg5 {[%clk 0:00:34.1]} 32... hxg5 {[%clk 0:02:22.2]}
33. Nd3 {[%clk 0:00:31.7]} 33... f4 {[%clk 0:02:07.8]} 34. Kc2 {[%clk 0:00:21]}
34... Rb8 {[%clk 0:02:04.4]} 35. Nc5 {[%clk 0:00:21.2]} 35... Bf5+ {[%clk
0:02:04]} 36. Kc3 {[%clk 0:00:21.3]} 36... Rb1 {[%clk 0:02:03.5]} 37. Rf6 {[%clk
0:00:17.4]} 37... Bg6 {[%clk 0:02:00.4]} 38. g3 {[%clk 0:00:17.3]} 38... fxg3
{[%clk 0:01:59.5]} 39. fxg3 {[%clk 0:00:18.2]} 39... Rg1 {[%clk 0:01:59.6]} 40.
Rf3 {[%clk 0:00:17.7]} 40... Ra1 {[%clk 0:01:58.8]} 41. Kb4 {[%clk 0:00:17.5]}
41... Bh5 {[%clk 0:01:55]} 42. Rd3 {[%clk 0:00:14.6]} 42... Rb1+ {[%clk
0:01:53.3]} 43. Ka5 {[%clk 0:00:11.1]} 43... Be2 {[%clk 0:01:50.5]} 44. Re3
{[%clk 0:00:08.7]} 44... Bc4 {[%clk 0:01:48.3]} 45. a4 {[%clk 0:00:08.5]} 45...
Rd1 {[%clk 0:01:45.7]} 46. Kb6 {[%clk 0:00:08.9]} 46... Rxd4 {[%clk 0:01:45.4]}
47. a5 {[%clk 0:00:09.5]} 47... Rd1 {[%clk 0:01:45.3]} 48. a6 {[%clk 0:00:09.9]}
48... Ra1 {[%clk 0:01:45.8]} 49. a7 {[%clk 0:00:10]} 49... Kg6 {[%clk
0:01:44.2]} 50. Rf3 {[%clk 0:00:07.4]} 50... d4 {[%clk 0:01:42.1]} 51. Rf6+
{[%clk 0:00:07.5]} 51... Kg7 {[%clk 0:01:41.8]} 52. Rd6 {[%clk 0:00:08.4]} 52...
d3 {[%clk 0:01:41.2]} 53. Nxd3 {[%clk 0:00:07.5]} 53... Ra3 {[%clk 0:01:24.6]}
54. Nc5 {[%clk 0:00:06.7]} 54... Bf1 {[%clk 0:01:21.2]} 55. Rd4 {[%clk
0:00:06.4]} 55... Bg2 {[%clk 0:01:19.6]} 56. Ra4 {[%clk 0:00:05.8]} 56... Rxg3
{[%clk 0:01:19.1]} 57. Kc7 {[%clk 0:00:02]} 57... Rc3 {[%clk 0:01:17.1]} 58. Ra5
{[%clk 0:00:02.4]} 58... g4 {[%clk 0:01:10.3]} 59. Kb8 {[%clk 0:00:02.6]} 59...
Rc1 {[%clk 0:01:06.2]} 60. Nb7 {[%clk 0:00:02.7]} 60... Rb1 {[%clk 0:01:06.5]}
61. a8=Q {[%clk 0:00:02.4]} 61... Bxb7 {[%clk 0:01:04.4]} 62. Qxb7 {[%clk
0:00:02.6]} 62... Rxb7+ {[%clk 0:01:03.4]} 63. Kxb7 {[%clk 0:00:03.5]} 63... Kg6
{[%clk 0:01:03.6]} 64. Kc6 {[%clk 0:00:04]} 64... Kf5 {[%clk 0:01:03.4]} 65. Kd5
{[%clk 0:00:04.4]} 65... g3 {[%clk 0:01:02.9]} 66. Ra1 {[%clk 0:00:04.7]} 66...
f6 {[%clk 0:01:02.2]} 67. e6 {[%clk 0:00:04.8]} 67... Kg4 {[%clk 0:01:00.9]} 68.
e7 {[%clk 0:00:05.7]} 68... f5 {[%clk 0:01:01.6]} 69. e8=Q {[%clk 0:00:06.6]}
1-0

[Event "*** Titled Tuesday Blitz"]
[Site "Chess.com"]
[Date "2021.04.20"]
[Round "4"]
[White "Reader777"]
[Black "AlexTriapishko"]
[Result "0-1"]
[WhiteElo "2704"]
[BlackElo "2900"]
[TimeControl "180+1"]
[EndTime "10:38:13 PDT"]
[Termination "AlexTriapishko won on time"]

1. d4 {[%clk 0:03:00.9]} 1... Nf6 {[%clk 0:02:55.8]} 2. c4 {[%clk 0:03:00.8]}
2... e6 {[%clk 0:02:56.1]} 3. g3 {[%clk 0:03:00.3]} 3... d5 {[%clk 0:02:56.2]}
4. Bg2 {[%clk 0:03:00.6]} 4... dxc4 {[%clk 0:02:56.5]} 5. Nf3 {[%clk 0:03:00.7]}
5... Nc6 {[%clk 0:02:51.4]} 6. O-O {[%clk 0:03:00.3]} 6... Rb8 {[%clk
0:02:50.7]} 7. Nc3 {[%clk 0:03:00.3]} 7... b5 {[%clk 0:02:49.3]} 8. Ne5 {[%clk
0:03:00.4]} 8... Nxe5 {[%clk 0:02:49.9]} 9. dxe5 {[%clk 0:03:01]} 9... Nd7
{[%clk 0:02:50.5]} 10. Qd4 {[%clk 0:03:01]} 10... c5 {[%clk 0:02:24.1]} 11. Qf4
{[%clk 0:03:00.2]} 11... Bb7 {[%clk 0:02:14.8]} 12. Bxb7 {[%clk 0:02:35.7]}
12... Rxb7 {[%clk 0:02:15.7]} 13. a4 {[%clk 0:02:30]} 13... b4 {[%clk
0:02:15.9]} 14. Nb5 {[%clk 0:02:09.6]} 14... a6 {[%clk 0:02:11]} 15. Nd6+ {[%clk
0:02:09.7]} 15... Bxd6 {[%clk 0:02:11.5]} 16. exd6 {[%clk 0:02:10.1]} 16... c3
{[%clk 0:01:49.1]} 17. bxc3 {[%clk 0:01:43.2]} 17... b3 {[%clk 0:01:48.6]} 18.
Bb2 {[%clk 0:01:41.1]} 18... O-O {[%clk 0:01:39.6]} 19. c4 {[%clk 0:01:39.2]}
19... Qc8 {[%clk 0:01:10.9]} 20. a5 {[%clk 0:01:29.4]} 20... Qc6 {[%clk
0:01:06.4]} 21. Rfd1 {[%clk 0:01:21.6]} 21... f6 {[%clk 0:01:04]} 22. Qg4 {[%clk
0:01:14]} 22... e5 {[%clk 0:01:01.9]} 23. Qe6+ {[%clk 0:00:52.8]} 23... Kh8
{[%clk 0:01:01.3]} 24. h4 {[%clk 0:00:51.2]} 24... Qe4 {[%clk 0:00:56.3]} 25. e3
{[%clk 0:00:39.9]} 25... h5 {[%clk 0:00:50.8]} 26. Rd2 {[%clk 0:00:34.3]} 26...
Kh7 {[%clk 0:00:50.7]} 27. Rad1 {[%clk 0:00:32]} 27... Kg6 {[%clk 0:00:50.9]}
28. Rf1 {[%clk 0:00:22.9]} 28... Rfb8 {[%clk 0:00:42.9]} 29. Rfd1 {[%clk
0:00:19]} 29... Nf8 {[%clk 0:00:33.5]} 30. Qd5 {[%clk 0:00:16.2]} 30... Qxd5
{[%clk 0:00:33.1]} 31. Rxd5 {[%clk 0:00:17]} 31... Nd7 {[%clk 0:00:33.2]} 32. f4
{[%clk 0:00:14.3]} 32... Rb4 {[%clk 0:00:30.5]} 33. Rc1 {[%clk 0:00:11.8]} 33...
Kf5 {[%clk 0:00:26.9]} 34. Kf2 {[%clk 0:00:09.3]} 34... Ke6 {[%clk 0:00:25.8]}
35. e4 {[%clk 0:00:08.8]} 35... Ra4 {[%clk 0:00:25.7]} 36. Ke3 {[%clk
0:00:05.7]} 36... Rxa5 {[%clk 0:00:20.5]} 37. Rd3 {[%clk 0:00:04.4]} 37... Ra2
{[%clk 0:00:20.1]} 38. Rb1 {[%clk 0:00:03.4]} 38... a5 {[%clk 0:00:18.9]} 39.
fxe5 {[%clk 0:00:01.6]} 39... fxe5 {[%clk 0:00:18.7]} 40. Rd5 {[%clk 0:00:01.7]}
40... a4 {[%clk 0:00:17.3]} 41. Bc3 {[%clk 0:00:01.8]} 41... Rc2 {[%clk
0:00:16.8]} 42. Ba1 {[%clk 0:00:01.3]} 42... b2 {[%clk 0:00:16.7]} 0-1

[Event "*** Titled Tuesday Blitz"]
[Site "Chess.com"]
[Date "2021.04.20"]
[Round "4"]
[White "zurzan"]
[Black "kubal123"]
[Result "0-1"]
[WhiteElo "1998"]
[BlackElo "2230"]
[TimeControl "180+1"]
[EndTime "10:38:13 PDT"]
[Termination "kubal123 won by checkmate"]

1. f4 {[%clk 0:03:00.9]} 1... d6 {[%clk 0:02:50.7]} 2. Nf3 {[%clk 0:03:00.9]}
2... Nf6 {[%clk 0:02:47.6]} 3. g3 {[%clk 0:03:00.7]} 3... g6 {[%clk 0:02:47.3]}
4. Bg2 {[%clk 0:03:00.6]} 4... Bg7 {[%clk 0:02:48.2]} 5. O-O {[%clk 0:03:00.7]}
5... O-O {[%clk 0:02:48.8]} 6. d3 {[%clk 0:03:01.1]} 6... c5 {[%clk 0:02:49]} 7.
e4 {[%clk 0:03:00.7]} 7... Nc6 {[%clk 0:02:49.6]} 8. c3 {[%clk 0:03:00]} 8... e6
{[%clk 0:02:42.2]} 9. h3 {[%clk 0:03:00.1]} 9... Qc7 {[%clk 0:02:36.9]} 10. Be3
{[%clk 0:02:59.6]} 10... b6 {[%clk 0:02:36]} 11. a4 {[%clk 0:02:55.5]} 11... Bb7
{[%clk 0:02:35.6]} 12. Nbd2 {[%clk 0:02:53.3]} 12... a6 {[%clk 0:02:24]} 13. Qe1
{[%clk 0:02:52.2]} 13... Rfe8 {[%clk 0:02:23.5]} 14. g4 {[%clk 0:02:50.5]} 14...
Nd7 {[%clk 0:02:15.8]} 15. f5 {[%clk 0:02:42.9]} 15... exf5 {[%clk 0:02:15.4]}
16. gxf5 {[%clk 0:02:43]} 16... d5 {[%clk 0:01:53.9]} 17. Nh4 {[%clk 0:02:37.1]}
17... dxe4 {[%clk 0:01:52.6]} 18. dxe4 {[%clk 0:02:34.6]} 18... Nce5 {[%clk
0:01:46.9]} 19. Qg3 {[%clk 0:02:21.4]} 19... Rac8 {[%clk 0:01:45.4]} 20. Bf4
{[%clk 0:02:20.1]} 20... c4 {[%clk 0:01:32]} 21. Kh1 {[%clk 0:02:07]} 21... Qc5
{[%clk 0:01:28.5]} 22. Be3 {[%clk 0:02:01.7]} 22... Qc6 {[%clk 0:01:24.6]} 23.
Bd4 {[%clk 0:01:55.7]} 23... Rcd8 {[%clk 0:01:16.8]} 24. Rf2 {[%clk 0:01:43.3]}
24... Qc8 {[%clk 0:01:15]} 25. Raf1 {[%clk 0:01:40.7]} 25... Nd3 {[%clk
0:01:12.4]} 26. Rf4 {[%clk 0:01:23.8]} 26... Nxf4 {[%clk 0:01:10.8]} 27. Qxf4
{[%clk 0:01:21.7]} 27... Ne5 {[%clk 0:01:07.2]} 28. f6 {[%clk 0:01:14.6]} 28...
Nd3 {[%clk 0:01:07.1]} 29. Qg3 {[%clk 0:01:01.2]} 29... Bf8 {[%clk 0:01:03.9]}
30. b3 {[%clk 0:00:46.5]} 30... Qb8 {[%clk 0:00:45.8]} 31. Qe3 {[%clk
0:00:40.2]} 31... Nc5 {[%clk 0:00:39.4]} 32. bxc4 {[%clk 0:00:35.1]} 32... Qa8
{[%clk 0:00:37.4]} 33. Qg3 {[%clk 0:00:27.3]} 33... Nxe4 {[%clk 0:00:34.6]} 34.
Nxe4 {[%clk 0:00:27.1]} 34... Bxe4 {[%clk 0:00:35.4]} 35. Bxb6 {[%clk
0:00:24.4]} 35... Bxg2+ {[%clk 0:00:34.3]} 36. Qxg2 {[%clk 0:00:24.9]} 36...
Qxg2+ {[%clk 0:00:33.5]} 37. Kxg2 {[%clk 0:00:25.8]} 37... Rc8 {[%clk
0:00:29.8]} 38. a5 {[%clk 0:00:25.3]} 38... Rxc4 {[%clk 0:00:29.3]} 39. Rf3
{[%clk 0:00:21.7]} 39... Rxh4 {[%clk 0:00:25.7]} 40. Kg3 {[%clk 0:00:21.3]}
40... Rc4 {[%clk 0:00:26.1]} 41. Rd3 {[%clk 0:00:20.5]} 41... Rec8 {[%clk
0:00:25.3]} 42. Rd7 {[%clk 0:00:16.4]} 42... Rxc3+ {[%clk 0:00:24.5]} 43. Kf2
{[%clk 0:00:16.8]} 43... h5 {[%clk 0:00:24.5]} 44. Ra7 {[%clk 0:00:15.2]} 44...
Rc2+ {[%clk 0:00:24.6]} 45. Ke3 {[%clk 0:00:15.1]} 45... R2c3+ {[%clk
0:00:22.6]} 46. Kd2 {[%clk 0:00:15]} 46... Rxh3 {[%clk 0:00:22.3]} 47. Rxa6
{[%clk 0:00:14.4]} 47... Bh6+ {[%clk 0:00:21.2]} 48. Kd1 {[%clk 0:00:11.1]}
48... Rh2 {[%clk 0:00:19.8]} 49. Bg1 {[%clk 0:00:08.5]} 49... Rc1# {[%clk
0:00:19.5]} 0-1

[Event "*** Titled Tuesday Blitz"]
[Site "Chess.com"]
[Date "2021.04.20"]
[Round "4"]
[White "ENajer77"]
[Black "Aleksey_Sorokin"]
[Result "1/2-1/2"]
[WhiteElo "2688"]
[BlackElo "2828"]
[TimeControl "180+1"]
[EndTime "10:38:15 PDT"]
[Termination "Game drawn by repetition"]

1. d4 {[%clk 0:03:00.9]} 1... Nf6 {[%clk 0:02:47.7]} 2. c4 {[%clk 0:03:00.2]}
2... g6 {[%clk 0:02:47.8]} 3. Nc3 {[%clk 0:02:59.7]} 3... d5 {[%clk 0:02:48.2]}
4. cxd5 {[%clk 0:02:57.5]} 4... Nxd5 {[%clk 0:02:49.1]} 5. Bd2 {[%clk 0:02:58]}
5... Bg7 {[%clk 0:02:44]} 6. e4 {[%clk 0:02:57.5]} 6... Nxc3 {[%clk 0:02:44.2]}
7. Bxc3 {[%clk 0:02:57.8]} 7... O-O {[%clk 0:02:44.3]} 8. Qd2 {[%clk 0:02:56.3]}
8... c5 {[%clk 0:02:43.6]} 9. d5 {[%clk 0:02:54.4]} 9... e6 {[%clk 0:02:40.3]}
10. d6 {[%clk 0:02:47.1]} 10... e5 {[%clk 0:02:26.6]} 11. Nf3 {[%clk 0:02:44.2]}
11... Nc6 {[%clk 0:02:23.9]} 12. Bb5 {[%clk 0:02:14.4]} 12... Nd4 {[%clk
0:02:22.6]} 13. Bxd4 {[%clk 0:02:14.2]} 13... exd4 {[%clk 0:02:11.8]} 14. O-O
{[%clk 0:02:02.2]} 14... Qxd6 {[%clk 0:02:10.2]} 15. h3 {[%clk 0:02:01]} 15...
b6 {[%clk 0:02:06]} 16. Rfe1 {[%clk 0:01:59]} 16... Bb7 {[%clk 0:02:05.9]} 17.
a4 {[%clk 0:01:51.2]} 17... a6 {[%clk 0:02:03.5]} 18. Bc4 {[%clk 0:01:50.6]}
18... Rae8 {[%clk 0:02:02.7]} 19. Qd3 {[%clk 0:01:49.3]} 19... a5 {[%clk
0:01:57]} 20. Bb5 {[%clk 0:01:45.7]} 20... Re7 {[%clk 0:01:55.2]} 21. Nd2 {[%clk
0:01:45.6]} 21... Qf4 {[%clk 0:01:50.5]} 22. Re2 {[%clk 0:01:36.5]} 22... Qc7
{[%clk 0:01:46.4]} 23. Rae1 {[%clk 0:01:32.2]} 23... Be5 {[%clk 0:01:43.9]} 24.
Nc4 {[%clk 0:01:25.2]} 24... Qd8 {[%clk 0:01:33]} 25. g3 {[%clk 0:01:15.9]}
25... Bc7 {[%clk 0:01:32.9]} 26. Nd2 {[%clk 0:01:11.9]} 26... Kg7 {[%clk
0:01:20]} 27. h4 {[%clk 0:01:06]} 27... Qd6 {[%clk 0:01:16.9]} 28. Nc4 {[%clk
0:01:01]} 28... Qf6 {[%clk 0:01:15.2]} 29. Nd2 {[%clk 0:01:00.7]} 29... h6
{[%clk 0:01:07.5]} 30. Bc4 {[%clk 0:00:59.3]} 30... Bc6 {[%clk 0:01:03.2]} 31.
b3 {[%clk 0:00:57]} 31... g5 {[%clk 0:00:59.5]} 32. h5 {[%clk 0:00:56]} 32... g4
{[%clk 0:00:55.4]} 33. Bd5 {[%clk 0:00:49.3]} 33... Bd7 {[%clk 0:00:47.9]} 34.
Kg2 {[%clk 0:00:36.2]} 34... Qg5 {[%clk 0:00:43.1]} 35. Rh1 {[%clk 0:00:35.7]}
35... Rfe8 {[%clk 0:00:38.5]} 36. Nc4 {[%clk 0:00:26]} 36... f5 {[%clk
0:00:28.8]} 37. e5 {[%clk 0:00:23.1]} 37... f4 {[%clk 0:00:28.9]} 38. gxf4
{[%clk 0:00:20.4]} 38... Qxf4 {[%clk 0:00:28.5]} 39. Qg6+ {[%clk 0:00:20.2]}
39... Kh8 {[%clk 0:00:27.1]} 40. e6 {[%clk 0:00:16.6]} 40... Bxe6 {[%clk
0:00:23.1]} 41. Rxe6 {[%clk 0:00:02.9]} 41... Rxe6 {[%clk 0:00:22]} 42. Bxe6
{[%clk 0:00:03.5]} 42... Qf3+ {[%clk 0:00:07.8]} 43. Kg1 {[%clk 0:00:03.8]}
43... Qd1+ {[%clk 0:00:08]} 44. Kg2 {[%clk 0:00:04.5]} 44... Qf3+ {[%clk
0:00:08.9]} 45. Kg1 {[%clk 0:00:05.1]} 45... Qd1+ {[%clk 0:00:09.5]} 46. Kg2
{[%clk 0:00:05.6]} 46... Qf3+ {[%clk 0:00:10.4]} 1/2-1/2

[Event "*** Titled Tuesday Blitz"]
[Site "Chess.com"]
[Date "2021.04.20"]
[Round "4"]
[White "GracefulYear"]
[Black "chess94cu"]
[Result "0-1"]
[WhiteElo "2344"]
[BlackElo "2594"]
[TimeControl "180+1"]
[EndTime "10:38:15 PDT"]
[Termination "chess94cu won by checkmate"]

1. d4 {[%clk 0:03:00.9]} 1... Nf6 {[%clk 0:02:58.1]} 2. c4 {[%clk 0:03:00.7]}
2... e6 {[%clk 0:02:57.6]} 3. Nc3 {[%clk 0:03:00.4]} 3... d5 {[%clk 0:02:58.1]}
4. Bg5 {[%clk 0:02:59]} 4... Nbd7 {[%clk 0:02:56.7]} 5. Rc1 {[%clk 0:02:57.3]}
5... c6 {[%clk 0:02:55.9]} 6. e3 {[%clk 0:02:54.9]} 6... Qa5 {[%clk 0:02:53.9]}
7. Bxf6 {[%clk 0:02:49.7]} 7... Nxf6 {[%clk 0:02:54.1]} 8. Nf3 {[%clk
0:02:46.2]} 8... Bb4 {[%clk 0:02:48.2]} 9. Nd2 {[%clk 0:02:41.6]} 9... Ne4
{[%clk 0:02:41.1]} 10. Ndxe4 {[%clk 0:02:37.5]} 10... dxe4 {[%clk 0:02:40.2]}
11. Qb3 {[%clk 0:02:37.5]} 11... O-O {[%clk 0:02:32.4]} 12. a3 {[%clk 0:02:34]}
12... Be7 {[%clk 0:02:28.9]} 13. Be2 {[%clk 0:02:33.7]} 13... c5 {[%clk
0:02:06.9]} 14. O-O {[%clk 0:02:22.2]} 14... cxd4 {[%clk 0:02:05.6]} 15. exd4
{[%clk 0:02:23.1]} 15... f5 {[%clk 0:01:56.3]} 16. f3 {[%clk 0:02:11.4]} 16...
exf3 {[%clk 0:01:47.3]} 17. Bxf3 {[%clk 0:02:12.3]} 17... Bf6 {[%clk 0:01:42.3]}
18. Rcd1 {[%clk 0:02:10.5]} 18... Rd8 {[%clk 0:01:33.4]} 19. Ne2 {[%clk
0:02:02.6]} 19... Qc7 {[%clk 0:01:30.2]} 20. Rd2 {[%clk 0:01:54.5]} 20... Rb8
{[%clk 0:01:28.8]} 21. Rfd1 {[%clk 0:01:52.8]} 21... b6 {[%clk 0:01:29.3]} 22.
d5 {[%clk 0:01:51]} 22... exd5 {[%clk 0:01:30.2]} 23. Rxd5 {[%clk 0:01:51.4]}
23... Be6 {[%clk 0:01:25.1]} 24. Rxd8+ {[%clk 0:01:45.3]} 24... Rxd8 {[%clk
0:01:26]} 25. Rxd8+ {[%clk 0:01:43.3]} 25... Qxd8 {[%clk 0:01:24.8]} 26. Bd5
{[%clk 0:01:42.4]} 26... Bxd5 {[%clk 0:01:15.6]} 27. cxd5 {[%clk 0:01:43.3]}
27... Qd6 {[%clk 0:01:15.8]} 28. h3 {[%clk 0:01:32.1]} 28... Kf7 {[%clk
0:01:12.9]} 29. Kf2 {[%clk 0:01:28.6]} 29... Qc5+ {[%clk 0:01:11.6]} 30. Kf3
{[%clk 0:01:26.6]} 30... Ke7 {[%clk 0:01:12.1]} 31. Nf4 {[%clk 0:01:23.2]} 31...
g5 {[%clk 0:01:03.7]} 32. Nd3 {[%clk 0:01:18]} 32... Qd4 {[%clk 0:01:01.3]} 33.
Qb4+ {[%clk 0:01:15.6]} 33... Qxb4 {[%clk 0:01:00.3]} 34. axb4 {[%clk
0:01:11.5]} 34... Kd6 {[%clk 0:00:59.7]} 35. Ke3 {[%clk 0:01:08.9]} 35... Kxd5
{[%clk 0:00:58.1]} 36. b3 {[%clk 0:01:09.1]} 36... h5 {[%clk 0:00:51.4]} 37. Ne1
{[%clk 0:01:08.3]} 37... b5 {[%clk 0:00:47.9]} 38. Nf3 {[%clk 0:01:05.6]} 38...
a6 {[%clk 0:00:42.1]} 39. Ne1 {[%clk 0:01:03.2]} 39... Bc3 {[%clk 0:00:37.2]}
40. Nd3 {[%clk 0:00:59]} 40... Bd4+ {[%clk 0:00:36.5]} 41. Kf3 {[%clk
0:00:56.2]} 41... Bb6 {[%clk 0:00:35.7]} 42. g3 {[%clk 0:00:54.5]} 42... Kd4
{[%clk 0:00:33.5]} 43. Ne1 {[%clk 0:00:44]} 43... Kc3 {[%clk 0:00:33.3]} 44. h4
{[%clk 0:00:43.6]} 44... g4+ {[%clk 0:00:22.6]} 45. Ke2 {[%clk 0:00:36.6]} 45...
Bc7 {[%clk 0:00:22.6]} 46. Kf2 {[%clk 0:00:34.8]} 46... Kxb4 {[%clk 0:00:22.4]}
47. Nd3+ {[%clk 0:00:32.3]} 47... Kc3 {[%clk 0:00:19.5]} 48. Nc5 {[%clk
0:00:32.2]} 48... Bb6 {[%clk 0:00:19.2]} 49. b4 {[%clk 0:00:31.3]} 49... Kxb4
{[%clk 0:00:19.3]} 50. Ke3 {[%clk 0:00:31.8]} 50... Bxc5+ {[%clk 0:00:18.5]} 51.
Kf4 {[%clk 0:00:32.7]} 51... Bd6+ {[%clk 0:00:19.1]} 52. Kxf5 {[%clk 0:00:33.6]}
52... Bxg3 {[%clk 0:00:19.6]} 53. Kg5 {[%clk 0:00:34.5]} 53... Bxh4+ {[%clk
0:00:20.1]} 54. Kxh5 {[%clk 0:00:35.4]} 54... g3 {[%clk 0:00:20]} 55. Kg4 {[%clk
0:00:36.3]} 55... g2 {[%clk 0:00:20.4]} 56. Kxh4 {[%clk 0:00:36.5]} 56... g1=Q
{[%clk 0:00:20.4]} 57. Kh3 {[%clk 0:00:37.2]} 57... Kc5 {[%clk 0:00:20.5]} 58.
Kh4 {[%clk 0:00:38.1]} 58... Kd5 {[%clk 0:00:21.1]} 59. Kh5 {[%clk 0:00:38.9]}
59... Ke5 {[%clk 0:00:21.5]} 60. Kh6 {[%clk 0:00:39.8]} 60... Kf6 {[%clk
0:00:21.7]} 61. Kh5 {[%clk 0:00:40.7]} 61... Qg5# {[%clk 0:00:21.9]} 0-1

[Event "*** Titled Tuesday Blitz"]
[Site "Chess.com"]
[Date "2021.04.20"]
[Round "4"]
[White "yonaltimur"]
[Black "CURRUTACO59"]
[Result "0-1"]
[WhiteElo "1746"]
[BlackElo "2192"]
[TimeControl "180+1"]
[EndTime "10:38:16 PDT"]
[Termination "CURRUTACO59 won on time"]

1. e4 {[%clk 0:03:00.9]} 1... e5 {[%clk 0:02:59]} 2. Nf3 {[%clk 0:03:00]} 2...
Nf6 {[%clk 0:02:58.1]} 3. Nxe5 {[%clk 0:02:58.9]} 3... d6 {[%clk 0:02:58.1]} 4.
Nf3 {[%clk 0:02:58.5]} 4... Nxe4 {[%clk 0:02:57.6]} 5. Nc3 {[%clk 0:02:58.6]}
5... Nf6 {[%clk 0:02:56.8]} 6. d4 {[%clk 0:02:56.9]} 6... d5 {[%clk 0:02:56.8]}
7. Be2 {[%clk 0:02:56.3]} 7... Be7 {[%clk 0:02:50.3]} 8. O-O {[%clk 0:02:55.7]}
8... O-O {[%clk 0:02:50]} 9. Bf4 {[%clk 0:02:50.6]} 9... c6 {[%clk 0:02:44.8]}
10. h3 {[%clk 0:02:49.5]} 10... Nh5 {[%clk 0:02:25.9]} 11. Bh2 {[%clk 0:02:48]}
11... Bd6 {[%clk 0:02:19.3]} 12. Ne5 {[%clk 0:02:45.6]} 12... Nf6 {[%clk
0:02:18.4]} 13. Kh1 {[%clk 0:02:37.4]} 13... Qc7 {[%clk 0:02:16.2]} 14. a3
{[%clk 0:02:26.9]} 14... Nbd7 {[%clk 0:02:12.8]} 15. Nxd7 {[%clk 0:02:22.6]}
15... Bxd7 {[%clk 0:02:11.6]} 16. Bxd6 {[%clk 0:02:21.6]} 16... Qxd6 {[%clk
0:02:12.5]} 17. Qd2 {[%clk 0:02:19.3]} 17... Rfe8 {[%clk 0:02:10.3]} 18. Bd3
{[%clk 0:02:17.6]} 18... Nh5 {[%clk 0:01:58.6]} 19. Ne2 {[%clk 0:02:10.6]} 19...
Qf6 {[%clk 0:01:44.3]} 20. c3 {[%clk 0:01:55.8]} 20... Qh4 {[%clk 0:01:35.2]}
21. Kh2 {[%clk 0:01:50.2]} 21... Re7 {[%clk 0:01:24.7]} 22. Rae1 {[%clk
0:01:40.8]} 22... Rae8 {[%clk 0:01:23.5]} 23. Ng3 {[%clk 0:01:34.3]} 23... Nf4
{[%clk 0:01:08]} 24. Bf5 {[%clk 0:01:24.8]} 24... Be6 {[%clk 0:00:42.5]} 25.
Bxe6 {[%clk 0:01:21.6]} 25... Rxe6 {[%clk 0:00:37.8]} 26. Rxe6 {[%clk 0:01:13]}
26... Rxe6 {[%clk 0:00:36.8]} 27. Re1 {[%clk 0:01:12.7]} 27... g6 {[%clk
0:00:26.9]} 28. Rxe6 {[%clk 0:01:07.1]} 28... Nxe6 {[%clk 0:00:26.9]} 29. Qe3
{[%clk 0:01:05.6]} 29... Qf6 {[%clk 0:00:23]} 30. Ne2 {[%clk 0:00:56.2]} 30...
h5 {[%clk 0:00:22]} 31. Kg1 {[%clk 0:00:43.2]} 31... Qf5 {[%clk 0:00:21.6]} 32.
Kh2 {[%clk 0:00:31.5]} 32... Qc2 {[%clk 0:00:19.6]} 33. Nf4 {[%clk 0:00:16.3]}
33... Nxf4 {[%clk 0:00:16.2]} 34. Qxf4 {[%clk 0:00:15.2]} 34... Qxb2 {[%clk
0:00:16.2]} 35. Qb8+ {[%clk 0:00:09.4]} 35... Kh7 {[%clk 0:00:15.8]} 36. Qf4
{[%clk 0:00:07.2]} 36... Kg7 {[%clk 0:00:11.1]} 37. Qe5+ {[%clk 0:00:06.6]}
37... Kg8 {[%clk 0:00:10]} 38. Qe8+ {[%clk 0:00:05.6]} 38... Kg7 {[%clk
0:00:10.2]} 39. Qe5+ {[%clk 0:00:04.6]} 39... Kh7 {[%clk 0:00:09.8]} 40. Qf6
{[%clk 0:00:03]} 40... Kg8 {[%clk 0:00:09]} 0-1